[Event "44th Chess Olympiad Open 2022"]
[Site "Chennai"]
[Date "2022.08.05"]
[Round "7.68"]
[White "Nyambalo, Joseph Xavier"]
[Black "Nissinen, Niilo Man"]
[Result "0-1"]
[ECO "D96"]
[WhiteElo "1981"]
[BlackElo "1693"]
[Annotator "TA"]
[PlyCount "124"]
[EventDate "2022.07.29"]
[EventType "team-tourn"]
[EventCountry "IND"]
[SourceTitle "playchess.com"]
[Source "ChessBase"]
[SourceQuality "1"]
[WhiteTeam "MAW"]
[BlackTeam "Hong Kong"]
[BlackTeamCountry "HKG"]
[TimeControl "40/5400+30:1800+30"]

{[%evp 14,124,14,15,14,6,30,22,14,2,5,0,14,5,23,23,25,22,14,22,22,13,53,20,22,0,27,0,24,17,35,0,1,0,0,-15,0,0,0,0,0,-33,-25,-25,-23,-22,-24,-42,-49,-65,-59,-75,-67,-84,-77,-75,-19,-14,29,29,41,-12,0,0,82,81,97,81,222,100,99,99,99,99,93,0,0,-8,-8,-8,-10,-78,-48,-51,-62,-761,-767,-654,-600,-634,-26,-50,0,-68,-44,-53,-12,-17,-9,-60,-60,-304,-304,-360,-304,-460,-357,-445,-332,-1194,-815,-29973,-29975]} 1. c4 {[%emt 0:00:02]} Nf6 {[%emt 0:00:06]} 2. Nc3 {[%emt 0:00:07]} d5 {[%emt 0:00:05]} 3. d4 {[%emt 0:00:16]} g6 {[%emt 0:00:31]} 4. g3 {[%emt 0:00:23]} Bg7 {[%emt 0:06:20]} 5. Bg2 {[%emt 0:01:47]} dxc4 {[%emt 0:01:23]} 6. Qa4+ {[%emt 0:00:26]} Nbd7 {[%emt 0:00:52][%cal Bb8d7,Bd7b6,Bb6d5,Bd5c3][%mdl 32]} 7. Nf3 {[%emt 0:02:53]} O-O {[%emt 0:01:57]} 8. Qxc4 {[%emt 0:00:12]} Nb6 {[%emt 0:20:49] D96: Grünfeld: Russian System (5 Qb3): sidelines.} 9. Qd3 {[%emt 0:03:58]} Nbd5 {[%emt 0:02:26]} 10. O-O {[%emt 0:01:33]} Nxc3 {[%emt 0:02:59] The position is equal.} 11. bxc3 {[%emt 0:00:18]} Bf5 {[%emt 0:01:33]} 12. Qb5 {[%emt 0:00:43]} Be4 {[%emt 0:01:00]} 13. Ba3 {[%emt 0:00:43]} Re8 {[%emt 0:07:09] [#]} 14. Qb3 $146 {[%emt 0:02:17]} ({Predecessor:} 14. Rac1 Rb8 15. Rfd1 c6 16. Qb3 Qb6 17. Qa4 Qc7 18. c4 Nd7 19. e3 Rbd8 20. Ng5 Bxg2 21. Kxg2 {½-½ (28) Wuest,H (2026)-Hohlfeld,W (2062) Bayerisch Eisenstein 2018}) 14... e6 {[%emt 0:04:17]} 15. Rfd1 {[%emt 0:01:22]} b6 {[%emt 0:06:35]} 16. c4 {[%emt 0:02:44]} c6 {[%emt 0:02:39]} 17. Rac1 {[%emt 0:03:55]} Qc8 {[%emt 0:03:18]} 18. Bh3 {[%emt 0:00:00]} (18. Ne5 $5 {[%cal Rf2f3]} Bxg2 19. Kxg2 $11) 18... Bf5 {[%emt 0:12:28]} 19. Bg2 {[%emt 0:05:08]} Be4 $1 {[%emt 0:00:09]} 20. Bh3 {[%emt 0:00:18]} Bf5 {[%emt 0:00:25]} 21. Bxf5 {[%emt 0:00:12]} gxf5 {[%emt 0:01:29]} 22. c5 {[%emt 0:00:46]} b5 {[%emt 0:01:11]} 23. Bb2 {[%emt 0:00:45]} Nd5 {[%emt 0:01:22]} 24. Qd3 {[%emt 0:01:04]} Qd8 {[%emt 0:05:33]} 25. a3 {[%emt 0:01:25]} Qf6 {[%emt 0:02:08]} 26. Ne5 {[%emt 0:01:39]} Rec8 {[%emt 0:00:13]} 27. e4 {[%emt 0:00:38]} fxe4 {[%emt 0:00:06]} 28. Qxe4 {[%emt 0:00:06]} Qf5 {[%emt 0:04:56]} 29. Qxf5 {[%emt 0:02:33]} (29. Qe2 {feels hotter.} a5 30. Kg2 h5 31. Rd3) 29... exf5 {[%emt 0:00:06]} 30. Nd3 {[%emt 0:00:57]} a5 {[%emt 0:00:23]} 31. Kg2 {[%emt 0:18:05]} Re8 {[%emt 0:03:02]} 32. Re1 {[%emt 0:00:00]} Re4 {[%emt 0:04:29]} 33. f3 {[%emt 0:00:24]} Re3 {[%emt 0:00:05] Black is more active.} 34. Rcd1 {[%emt 0:05:10]} f4 {[%emt 0:00:07]} (34... Rae8 $17) 35. Nxf4 $11 {[%emt 0:02:32]} Rb3 {[%emt 0:00:13]} 36. Bc1 {[%emt 0:05:26]} Nxf4+ {[%emt 0:01:04]} 37. gxf4 {[%emt 0:00:15]} (37. Bxf4 $14 Rxa3 38. d5 cxd5 39. c6) 37... Rd8 {[%emt 0:01:59]} 38. f5 {[%emt 0:12:40]} Bf6 {[%emt 0:00:35] Against Bg5} (38... h6 $11 {remains equal.}) 39. Bh6 $16 {[%emt 0:04:58] Strongly threatening Re4.} Rxa3 {[%emt 0:00:46]} 40. d5 {[%emt 0:00:34]} Ra2+ {[%emt 0:00:33]} (40... cxd5 $16 41. Rxd5 Rc8) 41. Kh3 {[%emt 0:33:35]} (41. Kh1 $1 $18 {is the precise move to win.} cxd5 42. Rxd5) 41... Ra4 {[%emt 0:10:25] [#] And now ...Rh4+ would win.} (41... cxd5 $2 42. Rxd5 $1 Rc8 43. Rd6 $18) 42. f4 $1 {[%emt 0:00:00]} ({Weaker is} 42. Rg1+ Kh8 43. Rg4 cxd5 $17) 42... cxd5 {[%emt 0:05:17] [#]} 43. Rxd5 {[%emt 0:00:00]} Ra3+ {[%emt 0:00:10]} (43... Rc8 44. Rd6) 44. Kg2 {[%emt 0:00:00]} (44. Kg4 $16 {Rxd8+ would kill now.} Rc8 45. Rd6) 44... Rc8 $36 {[%emt 0:02:08][%mdl 2048] Black has good play.} (44... Ra2+ $2 45. Kh1 Rc8 46. c6 $18) 45. c6 {[%emt 0:00:00] White wants to mate with c7.} Rc3 $1 {[%emt 0:02:13]} 46. Rxb5 {[%emt 0:00:00]} R3xc6 {[%emt 0:00:11]} 47. Kh1 {[%emt 0:00:00]} (47. Bg5 $11 {keeps the balance.}) 47... Bd4 {[%emt 0:08:23]} (47... a4 $5 {[%cal Ra4a3]} 48. Bg5 Ra8 49. Bxf6 Rxf6 50. Rg1+ Kf8 $17) 48. Bg5 {[%emt 0:00:00]} a4 {[%emt 0:00:40]} 49. Rd1 {[%emt 0:01:30][%mdl 8192]} (49. Be7 $15) 49... Rc1 $19 {[%emt 0:00:38]} 50. Rxc1 {[%emt 0:00:06]} Rxc1+ {[%emt 0:00:05][%mdl 4096] Endgame KRB-KRB} 51. Kg2 {[%emt 0:00:00]} h6 $2 {[%emt 0:00:22]} (51... a3 $19 52. f6 h5) 52. Be7 $11 {[%emt 0:00:33]} Rc2+ {[%emt 0:03:23]} (52... Rc7 $15 53. Bd6 Rd7) 53. Kh1 {[%emt 0:05:17]} (53. Kf3 $11) 53... Ra2 {[%emt 0:00:19]} 54. Ra5 {[%emt 0:06:10]} Bb2 {[%emt 0:00:54]} 55. Bd6 {[%emt 0:02:22]} a3 {[%emt 0:01:34][%cal Ba4a3,Ba3a2][%mdl 32]} 56. Ra8+ {[%emt 0:05:35]} ({White should try} 56. Be5 $1 $11 f6 57. Bd6 (57. Ra8+ Kg7 $15)) 56... Kg7 $15 {[%emt 0:00:57] aiming for ...Kf6.} 57. h4 $2 {[%emt 0:00:39]} (57. Be5+ $1 $15 Bxe5 58. fxe5) 57... Kf6 $19 {[%emt 0:00:30]} 58. Ra5 {[%emt 0:00:02]} h5 {[%emt 0:01:37] ...Bc3 is the strong threat.} 59. Bf8 {[%emt 0:00:24]} (59. Bc7 $142 Bd4 60. Bd8+ Kg7 61. Ra8) 59... Ra1+ {[%emt 0:00:44]} 60. Kg2 {[%emt 0:00:46]} a2 {[%emt 0:00:17]} 61. Bb4 $2 {[%emt 0:01:07]} (61. Bd6) 61... Bd4 {[%emt 0:00:18] ( -> ...Rg1+)} 62. Bd6 {[%emt 0:00:44]} Rg1+ {[%emt 0:00:12] Weighted Error Value: White=0.64/Black=0.28 (precise)} 0-1

[Event "44th Chess Olympiad Open 2022"]
[Site "Chennai"]
[Date "2022.08.05"]
[Round "7.68"]
[White "Kwong, Wing Ki"]
[Black "Matola Ernest"]
[Result "1-0"]
[ECO "E94"]
[WhiteElo "1824"]
[BlackElo "1964"]
[Annotator "TA"]
[PlyCount "87"]
[EventDate "2022.07.29"]
[EventType "team-tourn"]
[EventCountry "IND"]
[SourceTitle "playchess.com"]
[Source "ChessBase"]
[SourceQuality "1"]
[WhiteTeam "Hong Kong"]
[BlackTeam "MAW"]
[WhiteTeamCountry "HKG"]
[TimeControl "40/5400+30:1800+30"]

{[%evp 14,87,31,13,44,35,37,28,38,-4,32,30,12,16,59,48,108,105,101,99,87,70,59,29,37,20,113,105,122,41,154,103,137,138,132,146,145,138,143,147,137,141,175,172,204,175,159,160,451,468,444,397,487,491,470,464,555,558,579,508,832,815,935,659,1168,1200,1468,929,943,636,1110,1065,996,758,29980,29981]} 1. d4 {[%emt 0:00:06]} Nf6 {[%emt 0:00:07]} 2. c4 {[%emt 0:00:10]} g6 {[%emt 0:00:05]} 3. Nc3 {[%emt 0:00:26]} Bg7 {[%emt 0:00:12]} 4. e4 {[%emt 0:00:26]} d6 {[%emt 0:00:10]} 5. Nf3 {[%emt 0:00:31]} O-O {[%emt 0:00:56]} 6. Be2 {[%emt 0:00:32]} Na6 {[%emt 0:00:00]} 7. O-O {[%emt 0:00:48]} e5 {[%emt 0:01:12]} 8. d5 {[%emt 0:01:48]} Nh5 {[%emt 0:00:50] [#] E94: King's Indian: Classical: 6 Be2 e5 7 0-0: Various Black 7th moves.} 9. Rb1 $146 {[%emt 0:09:54]} ({Predecessor:} 9. g3 Bh3 10. Re1 Bg4 11. Nh4 Bxe2 12. Qxe2 Bf6 13. Ng2 Ng7 14. Be3 Be7 15. f4 Bf6 16. Rf1 exf4 17. gxf4 {0-1 (45) Vypkhaniuk,I (2412)-Ganerdene,S (2419) Chess.com INT 2020}) 9... Nf4 {[%emt 0:01:05]} 10. b4 {[%emt 0:00:27]} f5 {[%emt 0:00:59] White has an edge.} 11. Ba3 {[%emt 0:08:50]} fxe4 {[%emt 0:01:06]} 12. Nxe4 {[%emt 0:00:27]} Bf5 {[%emt 0:05:19]} 13. Nfd2 {[%emt 0:02:07]} Bh6 {[%emt 0:04:01]} 14. Bf3 {[%emt 0:03:00]} b5 {[%emt 0:04:55]} (14... Nb8 $14) 15. cxb5 $16 {[%emt 0:02:02]} Nb8 {[%emt 0:00:14][%cal Ba6b8,Bb8d7,Bd7b6][%mdl 32]} 16. Rb3 {[%emt 0:02:07]} Nd7 {[%emt 0:01:28]} 17. g3 {[%emt 0:01:42]} Nh3+ {[%emt 0:00:50]} 18. Kh1 {[%emt 0:00:54]} Nb6 {[%emt 0:02:18]} 19. Bg2 {[%emt 0:02:05]} Bd7 {[%emt 0:02:31]} (19... Qd7 $11) 20. Bc1 {[%emt 0:04:17]} Ng5 {[%emt 0:06:44]} 21. Nf3 {[%emt 0:06:46]} (21. Qe2 $16) 21... Nf7 {[%emt 0:02:33]} ({Better is} 21... Nxe4 $14 22. Bxh6 Bxb5) 22. Qe2 {[%emt 0:05:37]} (22. Bxh6 $142 Nxh6 23. Qd2) 22... Bg7 {[%emt 0:01:38] [#]} 23. Rd1 $1 {[%emt 0:00:23]} Qe8 {[%emt 0:01:19] [#]} 24. Bf1 $1 {[%emt 0:03:46] 0x0.001b83f0d068dp-1022s more active pieces.} Nh6 {[%emt 0:01:01]} 25. Rc3 {[%emt 0:04:27]} Rc8 {[%emt 0:02:11]} 26. Bxh6 {[%emt 0:08:16]} Bxh6 {[%emt 0:00:22]} 27. Nfg5 {[%emt 0:00:58] Against Qf7} Qe7 {[%emt 0:01:41]} 28. h4 {[%emt 0:00:17]} Kh8 {[%emt 0:02:27]} 29. Kh2 {[%emt 0:04:38]} Bf5 {[%emt 0:04:37]} 30. Bg2 {[%emt 0:05:57]} Rf6 $2 {[%emt 0:01:57]} (30... Bxg5 $16 31. Nxg5 h6) 31. Nxf6 $18 {[%emt 0:00:58]} Qxf6 {[%emt 0:02:30]} 32. Rdc1 {[%emt 0:01:26]} Qe7 {[%emt 0:00:07]} 33. Be4 {[%emt 0:05:33]} Bxg5 {[%emt 0:01:07]} 34. hxg5 {[%emt 0:00:14]} Qxg5 {[%emt 0:01:33]} 35. Rxc7 {[%emt 0:02:52]} Rf8 {[%emt 0:00:32] White must now prevent ...Bxe4.} 36. Kg1 {[%emt 0:01:29]} h5 {[%emt 0:00:54]} (36... Na8 $142 37. R7c3 Bd7) 37. Bxf5 {[%emt 0:03:35]} gxf5 {[%emt 0:00:48]} 38. Qe3 {[%emt 0:02:21]} f4 {[%emt 0:00:30]} 39. Qe4 {[%emt 0:00:34][%csl Gc7][%cal Re4h7]} Rf5 {[%emt 0:00:08]} 40. R1c3 {[%emt 0:00:47] Threatens to win with Rb7.} h4 {[%emt 0:00:37]} 41. Qg2 {[%emt 0:32:49]} Qf6 {[%emt 0:07:37]} 42. gxf4 {[%emt 0:00:00]} exf4 {[%emt 0:00:00]} 43. Qe4 {[%emt 0:09:29][%cal Oc7e7] And now Re7! would win.} f3 {[%emt 0:03:20] [#]} 44. Rxf3 $3 {[%emt 0:00:00][%mdl 512] Weighted Error Value: White=0.31/Black=0.46} 1-0

[Event "44th Chess Olympiad Open 2022"]
[Site "Chennai"]
[Date "2022.08.05"]
[Round "7.69"]
[White "Matoewi, Roger"]
[Black "seder mohamad"]
[Result "1/2-1/2"]
[ECO "D34"]
[WhiteElo "2015"]
[BlackElo "1950"]
[Annotator "TA"]
[PlyCount "87"]
[EventDate "2022.07.29"]
[EventType "team-tourn"]
[EventCountry "IND"]
[SourceTitle "playchess.com"]
[Source "ChessBase"]
[SourceQuality "1"]
[WhiteTeam "Surinam"]
[BlackTeam "Palestine"]
[WhiteTeamCountry "SUR"]
[BlackTeamCountry "PLE"]
[TimeControl "40/5400+30:1800+30"]

{[%evp 28,87,35,17,65,67,52,32,66,54,118,100,100,100,101,100,101,100,103,93,93,90,88,89,101,97,102,101,132,129,128,128,139,128,134,112,112,105,98,99,105,91,86,41,41,45,48,43,45,45,52,27,27,27,27,27,27,0,35,0,27,0]} 1. Nf3 {[%emt 0:00:13]} e6 {[%emt 0:04:08]} 2. g3 {[%emt 0:00:23]} Nf6 {[%emt 0:02:28]} 3. Bg2 {[%emt 0:00:09]} d5 {[%emt 0:00:55]} 4. c4 {[%emt 0:00:08]} Be7 {[%emt 0:01:55]} 5. O-O {[%emt 0:00:09]} O-O {[%emt 0:01:06]} 6. d4 {[%emt 0:00:13]} c5 {[%emt 0:01:50]} 7. cxd5 {[%emt 0:02:11]} exd5 {[%emt 0:01:01]} 8. Nc3 {[%emt 0:00:18]} Nc6 {[%emt 0:04:31]} 9. Bg5 {[%emt 0:02:29]} Be6 {[%emt 0:05:13]} 10. dxc5 {[%emt 0:10:36]} Bxc5 {[%emt 0:02:52]} 11. Bxf6 {[%emt 0:05:17]} Qxf6 {[%emt 0:01:28]} 12. Nxd5 {[%emt 0:00:16]} Qxb2 {[%emt 0:02:38]} 13. Nc7 {[%emt 0:00:11]} Rad8 {[%emt 0:06:31]} 14. Qc1 {[%emt 0:00:20]} Qxc1 {[%emt 0:03:02]} 15. Raxc1 {[%emt 0:00:17]} Ba3 {[%emt 0:00:19] D34: Tarrasch Defence: 6 g3 Nf6 7 Bg2 Be7.} (15... b6 $11 {might be stronger.}) 16. Nxe6 $14 {[%emt 0:00:08]} fxe6 {[%emt 0:00:17]} 17. Rb1 {[%emt 0:00:07]} Rd7 {[%emt 0:03:14] White is slightly better.} 18. Ng5 {[%emt 0:00:32] [#]} Re8 $146 {[%emt 0:07:51] [#]} ({Black should try} 18... Nd4 $14) ({Predecessor:} 18... e5 19. Rb3 Bc5 20. Bxc6 bxc6 21. Ne6 Bb6 22. Nxf8 Kxf8 23. Rb2 Ke7 24. e3 Ke6 {1-0 (35) Sarkar,J (2324)-Matveeva,O (2145) Chess.com INT 2021}) 19. Rxb7 $3 {[%emt 0:00:42][%mdl 512]} Rxb7 {[%emt 0:01:10]} 20. Bxc6 {[%emt 0:00:02]} h6 {[%emt 0:05:48][%cal Ob7b2]} 21. Bxb7 {[%emt 0:01:29]} hxg5 $16 {[%emt 0:00:03][%mdl 4096] Endgame KRB-KRB} 22. Rd1 {[%emt 0:00:55]} Kf7 {[%emt 0:02:05]} 23. Kg2 {[%emt 0:00:34]} Ke7 {[%emt 0:02:31]} 24. Ba6 {[%emt 0:01:39]} Rb8 {[%emt 0:06:33]} 25. Bc4 {[%emt 0:02:38]} Bc5 {[%emt 0:04:36]} 26. Bb3 {[%emt 0:01:08]} a5 {[%emt 0:07:11]} 27. Rc1 {[%emt 0:03:28]} Bd6 {[%emt 0:05:02]} 28. Rc6 {[%emt 0:01:16]} Ra8 {[%emt 0:02:49]} 29. Rc4 {[%emt 0:00:17]} Rb8 {[%emt 0:00:44]} 30. Re4 {[%emt 0:00:12]} e5 {[%emt 0:00:30]} 31. Rc4 {[%emt 0:12:13]} Rb4 {[%emt 0:01:48]} 32. Rc8 {[%emt 0:02:29]} a4 {[%emt 0:03:21]} 33. Bd5 {[%emt 0:00:15]} Rb8 {[%emt 0:01:06]} 34. Rc6 {[%emt 0:00:50] White is more active.} Rb2 {[%emt 0:03:37]} 35. e4 {[%emt 0:03:51]} g4 {[%emt 0:01:19]} 36. h3 {[%emt 0:05:07]} gxh3+ {[%emt 0:01:47]} 37. Kxh3 {[%emt 0:00:03]} Rxf2 {[%emt 0:01:40]} 38. Ra6 {[%emt 0:00:59]} a3 {[%emt 0:01:00]} 39. Kg4 {[%emt 0:01:16]} Rf6 {[%emt 0:02:39]} 40. Ra7+ {[%emt 0:07:43]} Kf8 $1 {[%emt 0:01:03]} 41. Ra8+ {[%emt 0:30:52]} Ke7 {[%emt 0:30:09]} 42. Ra7+ {[%emt 0:00:08]} Kf8 $1 {[%emt 0:00:21]} 43. Ra8+ {[%emt 0:00:07]} Ke7 {[%emt 0:00:10]} 44. Ra7+ {[%emt 0:01:16] Weighted Error Value: White=0.08 (flawless) /Black=0.08 (flawless)} 1/2-1/2

[Event "44th Chess Olympiad Open 2022"]
[Site "Chennai"]
[Date "2022.08.05"]
[Round "7.69"]
[White "Giasi, Viresh"]
[Black "Altell, Majed"]
[Result "1-0"]
[ECO "B10"]
[WhiteElo "2006"]
[BlackElo "1807"]
[Annotator "TA"]
[PlyCount "83"]
[EventDate "2022.07.29"]
[EventType "team-tourn"]
[EventCountry "IND"]
[SourceTitle "playchess.com"]
[Source "ChessBase"]
[SourceQuality "1"]
[WhiteTeam "Surinam"]
[BlackTeam "Palestine"]
[WhiteTeamCountry "SUR"]
[BlackTeamCountry "PLE"]
[TimeControl "40/5400+30:1800+30"]

{[%evp 9,83,10,6,8,10,6,24,30,27,0,8,10,9,0,0,-14,0,-23,-25,-50,-33,-24,-31,-32,-35,-23,0,0,0,0,39,43,108,102,115,108,166,113,98,71,76,54,139,140,133,135,131,136,147,130,178,175,164,156,442,437,577,546,656,658,637,644,651,651,648,610,612,557,825,552,29987,29988,29991,29992,29992,29993]} 1. e4 {[%emt 0:00:19]} c6 {[%emt 0:00:05]} 2. d3 {[%emt 0:04:27]} d5 {[%emt 0:00:08]} 3. Be2 {[%emt 0:00:17]} dxe4 {[%emt 0:08:00]} 4. dxe4 {[%emt 0:00:08]} Qxd1+ {[%emt 0:00:12]} 5. Bxd1 {[%emt 0:00:07]} e5 {[%emt 0:00:39]} 6. Nf3 {[%emt 0:00:35] B10: Caro-Kann: 2 d3 and 2 c4.} Bd6 {[%emt 0:01:15] [#]} 7. Nbd2 $146 {[%emt 0:00:25]} ({Predecessor:} 7. Nc3 Bg4 8. O-O Nd7 9. h3 Bh5 10. g4 Bg6 11. Nh4 Nc5 12. Nxg6 hxg6 13. Kg2 {1-0 (40) Bedel,S (1832)-Gocer,O (1547) Konya 2019}) 7... f6 {[%emt 0:01:31]} 8. Nc4 {[%emt 0:06:40] White has an edge.} Bc7 {[%emt 0:01:01]} 9. b3 {[%emt 0:00:23]} b5 {[%emt 0:01:27]} 10. Ne3 {[%emt 0:00:32]} Ne7 {[%emt 0:00:43]} 11. O-O {[%emt 0:01:14]} Nd7 {[%emt 0:03:51]} 12. Ba3 {[%emt 0:01:51] Inhibits Nc5.} a5 {[%emt 0:01:30]} 13. c3 {[%emt 0:06:33]} (13. Be2 $5 {[%cal Rf1d1]}) 13... Bb6 {[%emt 0:21:33]} 14. Nh4 {[%emt 0:12:02]} Bc5 {[%emt 0:00:00]} (14... Nc5 $5 {[%cal Rc5e4]}) 15. Bxc5 {[%emt 0:02:19]} Nxc5 {[%emt 0:01:25]} 16. Bc2 {[%emt 0:02:59]} g5 {[%emt 0:01:54]} 17. Nhf5 {[%emt 0:01:59]} Nxf5 {[%emt 0:01:31]} (17... Bxf5 $5 18. exf5 O-O $11) 18. exf5 {[%emt 0:00:19]} Ke7 {[%emt 0:02:55]} 19. b4 {[%emt 0:12:36]} Nb7 {[%emt 0:04:59]} 20. a4 {[%emt 0:00:00] Black must now prevent axb5.} Bd7 {[%emt 0:00:53]} ({Black should try} 20... Nd6 $14) 21. axb5 $16 {[%emt 0:00:00] aiming for Be4.} axb4 {[%emt 0:08:01]} 22. cxb4 {[%emt 0:06:12] Hoping for Be4.} cxb5 {[%emt 0:02:34]} (22... Nd6 $16 {is a better defense.}) 23. Nd5+ {[%emt 0:00:51]} (23. Be4 $18 Rxa1 24. Rxa1) 23... Kf7 {[%emt 0:00:57]} 24. Nb6 {[%emt 0:01:32][%csl LRa8,LRd7] White is more active.} Rxa1 {[%emt 0:01:04]} 25. Rxa1 {[%emt 0:00:01]} (25. Bb3+ {is interesting.} Ke8 26. Rxa1 Bxf5 27. Ra7) 25... Bc6 {[%emt 0:01:33]} ({Black should play} 25... Rd8 $1 $14) 26. Bb3+ {[%emt 0:00:34]} Kg7 {[%emt 0:01:49] [#]} 27. Rc1 $1 {[%emt 0:00:28]} Nd8 {[%emt 0:01:28]} 28. f3 {[%emt 0:02:15][%cal Bf2f3,Bf3e4][%mdl 32]} Re8 {[%emt 0:01:04] [#]} 29. Nc8 $1 {[%emt 0:04:44]} e4 {[%emt 0:10:03]} (29... Bb7 $16 30. Rc5 Kf8) 30. Nd6 $18 {[%emt 0:04:44]} Re7 {[%emt 0:01:15]} 31. fxe4 {[%emt 0:00:44]} Rd7 $2 {[%emt 0:01:46] Black cannot hold the game after this.} (31... Ra7 $16 {was called for.} 32. Rc5 Ra6) 32. Ne8+ {[%emt 0:00:36]} Kf8 {[%emt 0:00:59]} 33. Nxf6 {[%emt 0:00:07]} Rd3 {[%emt 0:00:50]} 34. Bd5 {[%emt 0:06:09]} Bxd5 {[%emt 0:00:16]} 35. Nxd5 {[%emt 0:00:07][%mdl 4096] Endgame KRN-KRN} ({Not} 35. exd5 h6 36. Rc8 Ke7 37. Ng8+ Kd7 $18) 35... Nf7 {[%emt 0:00:45]} 36. Rc8+ {[%emt 0:00:54]} Kg7 {[%emt 0:00:09]} 37. f6+ {[%emt 0:00:22]} Kh6 {[%emt 0:00:36]} 38. h3 {[%emt 0:02:12]} Rd2 {[%emt 0:01:06]} 39. Ne7 {[%emt 0:01:25] Intending Rg8 and mate.} Re2 {[%emt 0:01:46]} 40. Rg8 {[%emt 0:00:32] White mates.} Ne5 {[%emt 0:05:14]} 41. Nf5+ {[%emt 0:31:10]} Kh5 {[%emt 0:30:08]} 42. Ng3+ {[%emt 0:00:03] Weighted Error Value: White=0.13 (very precise) /Black=0.50} 1-0

[Event "44th Chess Olympiad Open 2022"]
[Site "Chennai"]
[Date "2022.08.05"]
[Round "7.69"]
[White "Miswadah, Baha"]
[Black "Kalidjo, Imaan"]
[Result "1-0"]
[ECO "D02"]
[WhiteElo "1985"]
[BlackElo "1819"]
[Annotator "TA"]
[PlyCount "81"]
[EventDate "2022.07.29"]
[EventType "team-tourn"]
[EventCountry "IND"]
[SourceTitle "playchess.com"]
[Source "ChessBase"]
[SourceQuality "1"]
[WhiteTeam "Palestine"]
[BlackTeam "Surinam"]
[WhiteTeamCountry "PLE"]
[BlackTeamCountry "SUR"]
[TimeControl "40/5400+30:1800+30"]

{[%evp 10,81,9,4,15,9,16,12,36,26,23,24,27,12,25,10,29,20,43,23,33,22,25,13,68,66,69,72,62,30,87,76,76,25,20,32,25,25,37,26,64,6,10,8,10,10,20,8,27,4,160,131,182,148,219,165,179,152,291,277,360,356,366,353,340,283,393,394,477,463,595,342,459,439]} 1. d4 {[%emt 0:00:03]} Nf6 {[%emt 0:00:19]} 2. Bf4 {[%emt 0:00:13]} e6 {[%emt 0:00:46]} 3. e3 {[%emt 0:00:07]} b6 {[%emt 0:00:38]} 4. Nf3 {[%emt 0:00:36]} Bb7 {[%emt 0:00:18]} 5. Nbd2 {[%emt 0:00:14]} d5 {[%emt 0:01:29]} 6. Bd3 {[%emt 0:00:10]} Nbd7 {[%emt 0:03:25] D02: 1 d4 d5 2 Nf3 sidelines, including 2...Nf6 3 g3 and 2...Nf6 3 Bf4.} 7. c3 {[%emt 0:01:07]} Ne4 {[%emt 0:01:10] [#]} 8. Qe2 $146 {[%emt 0:03:30]} ({Predecessor:} 8. O-O Be7 9. Ne5 Nxe5 10. Bxe5 f6 11. Bg3 Nxg3 12. fxg3 O-O 13. Qh5 f5 14. Rae1 {0-1 (53) Pham,L (2366)-Bacrot,E (2673) Chess.com INT 2020}) 8... a6 {[%emt 0:02:53] The position is equal.} 9. Ne5 {[%emt 0:06:48]} Nxe5 {[%emt 0:09:24]} 10. Bxe5 {[%emt 0:00:27]} f6 {[%emt 0:09:40]} 11. Bg3 {[%emt 0:11:37]} Qd7 {[%emt 0:02:28]} 12. a3 {[%emt 0:02:25]} Bd6 {[%emt 0:08:03]} 13. Bxd6 {[%emt 0:01:57]} cxd6 {[%emt 0:03:42]} 14. f3 {[%emt 0:01:21]} Nxd2 {[%emt 0:01:50]} 15. Qxd2 {[%emt 0:00:13]} Bc6 {[%emt 0:10:58]} 16. Qe2 {[%emt 0:02:25]} e5 {[%emt 0:03:05]} (16... O-O $11) 17. Qc2 $14 {[%emt 0:07:29]} ({But not} 17. Bxa6 $2 b5 18. a4 Rxa6 $19) 17... g6 {[%emt 0:05:16]} 18. O-O-O {[%emt 0:07:52]} b5 {[%emt 0:15:31]} 19. e4 {[%emt 0:11:40]} Qf7 {[%emt 0:00:33]} (19... dxe4 $11 {remains equal.} 20. Bxe4 d5 21. dxe5 fxe5) 20. exd5 $16 {[%emt 0:07:25]} Bxd5 {[%emt 0:02:06]} 21. Qe2 {[%emt 0:01:59]} (21. dxe5 $16 dxe5 22. Be4 Bxe4 23. Qxe4) 21... O-O $11 {[%emt 0:08:01]} 22. Be4 {[%emt 0:00:53]} Bxe4 {[%emt 0:04:41]} 23. Qxe4 {[%emt 0:01:45]} Qc4 {[%emt 0:04:38]} 24. Rhe1 {[%emt 0:02:06]} Rad8 {[%emt 0:00:23]} 25. Qd3 {[%emt 0:08:27]} ({White should play} 25. Qb7 $14) 25... Qxd3 26. Rxd3 {[%mdl 4096] Endgame KRR-KRR} Kf7 {[%emt 0:01:10]} 27. Kc2 {[%emt 0:00:49][%cal Oa3a4]} Ke6 {[%emt 0:00:46]} 28. f4 {[%emt 0:00:41]} h5 {[%emt 0:00:40]} 29. Rde3 {[%emt 0:00:45]} f5 $2 {[%emt 0:00:34] [#]} (29... g5 $11) 30. dxe5 {[%emt 0:00:53]} d5 {[%emt 0:00:04]} (30... Kf7 $16 31. exd6 Rxd6) 31. Rd3 {[%emt 0:00:44]} Rd7 {[%emt 0:00:18]} (31... h4 $16 32. Rd4 Rg8) 32. Rd4 {[%emt 0:00:04]} h4 {[%emt 0:00:47]} 33. a4 {[%emt 0:00:40] Hoping for axb5.} Ra8 {[%emt 0:00:50]} (33... g5 $16) 34. Ra1 $18 {[%emt 0:00:27] axb5 is the strong threat.} Rda7 {[%emt 0:00:29]} 35. Rb4 {[%emt 0:00:49]} bxa4 {[%emt 0:00:20]} 36. Rb6+ {[%emt 0:00:20]} ({Resist} 36. Rbxa4 g5 37. fxg5 Rh7 38. Rxa6+ Rxa6 39. Rxa6+ Kxe5 $18) 36... Kf7 {[%emt 0:00:31]} 37. Rd6 {[%emt 0:01:05]} Rb7 {[%emt 0:00:10]} 38. Rxa4 {[%emt 0:00:29]} Rab8 {[%emt 0:00:10]} 39. b4 {[%emt 0:01:02]} Rb6 {[%emt 0:00:49]} 40. Rxd5 {[%emt 0:00:37]} Ke6 {[%emt 0:00:04]} 41. Rda5 {[%emt 0:30:10] Weighted Error Value: White=0.21 (precise) /Black=0.41} 1-0